bitfinex-derivatives/quotes_SOLF0:USTF0_20250524
["timestamp","ask_amount","ask_price","bid_price","bid_amount"]
[1748046513052,0.03850781,174.13,174.1,0.03936341]
[1748046513246,0.03850781,174.13,174.12,5.7421]
[1748046515261,0.03850781,174.13,174.1,0.03936341]
[1748046515953,7.81e-06,174.13,174.12,5.7421]
[1748046524056,7.81e-06,174.13,174.12,137.1021]
[1748046531063,131.36,174.21,174.2,5.7395]
[1748046532160,131.36,174.21,174.19,0.03641007]
[1748046532355,131.36,174.21,174.18,0.0414761]
[1748046532555,131.40084274,174.21,174.18,0.0414761]
[1748046532759,137.14004274,174.21,174.18,5.7813761]
[1748046532959,137.14004274,174.21,174.18,0.0414761]
[1748046532960,131.40084274,174.21,174.18,0.0414761]
[1748046533154,131.40084274,174.21,174.2,5.7395]
[1748046533457,0.04084274,174.21,174.2,5.7395]
[1748046536365,4.274e-05,174.21,174.2,5.7395]
[1748046536567,7.08334992,174.25,174.24,5.7382]
[1748046536862,12.82044992,174.28,174.24,5.7382]
[1748046537468,7.12526499,174.28,174.24,0.0365067]
[1748046538068,5.7373,174.27,174.24,5.7744067]
[1748046538366,7.12526499,174.28,174.24,0.0365067]
[1748046539164,5.7377,174.26,174.24,0.0365067]
[1748046539562,7.12526499,174.28,174.24,0.0365067]
[1748046539757,7.12526499,174.28,174.26,5.7374]
[1748046540166,7.12526499,174.28,174.24,0.0365067]
[1748046540561,0.04191507,174.28,174.24,0.0365067]
[1748046540759,6.67394038,174.27,174.13,1.9342]
[1748046540967,5.7394,174.21,174.13,1.9342]
[1748046541267,131.32,174.23,174.13,1.9342]
[1748046541568,5.7397,174.2,174.16,5.7406]
[1748046541767,5.78279209,174.2,174.16,5.77965672]
[1748046541969,0.04309209,174.2,174.16,0.03905672]
[1748046542171,5.78269209,174.2,174.17,5.7401]
[1748046542466,0.04309209,174.2,174.16,0.03905672]
[1748046543371,0.04309209,174.2,174.17,5.7404]
[1748046543669,0.04309209,174.2,174.16,0.03905672]
[1748046543973,0.04309209,174.2,174.17,5.7404]
[1748046544369,5.78259209,174.2,174.17,5.7404]
[1748046544571,0.04309209,174.2,174.16,5.77975672]
[1748046544764,5.7399,174.19,174.16,5.77975672]
[1748046546365,5.7405,174.17,174.16,0.03905672]
[1748046552078,130.32,174.18,174.16,0.03905672]
[1748046553776,136.0604,174.18,174.16,0.03905672]
[1748046554074,130.32,174.18,174.16,0.03905672]
[1748046554380,5.7405,174.17,174.16,0.03905672]
[1748046557784,12.82384992,174.17,174.16,0.03905672]
[1748046558879,10.65960502,174.19,174.16,0.03905672]
[1748046559281,1.82240502,174.19,174.18,5.7401]
[1748046559484,14.01858819,174.24,174.18,6.67394038]
[1748046559967,1.9737,174.27,174.26,5.7375]
[1748046560272,1.9737,174.27,174.18,6.67394038]
[1748046560469,1.9737,174.27,174.24,5.7379]
[1748046560676,2.01358077,174.27,174.24,5.7379]
[1748046560876,2.01358077,174.27,174.21,0.0405792]
[1748046561478,7.75088077,174.27,174.21,0.0405792]
[1748046562075,7.75088077,174.27,174.23,5.7382]
[1748046563285,7.75088077,174.27,174.24,5.7381]
[1748046563488,2.01358077,174.27,174.24,5.7381]
[1748046563784,2.01358077,174.27,174.21,0.0405792]
[1748046564674,2.01358077,174.27,174.24,5.7379]
[1748046564885,7.75088077,174.27,174.21,0.0405792]
[1748046565486,7.75088077,174.27,174.23,5.7383]
[1748046566287,2.01358077,174.27,174.22,5.7387]
[1748046566587,2.01358077,174.27,174.21,0.0405792]
[1748046567289,5.7376,174.26,174.22,5.7387]
[1748046567789,5.7379,174.25,174.21,5.7796792]
[1748046568386,130.3,174.24,174.21,0.0405792]
[1748046568581,132.2673,174.24,174.21,0.0405792]
[1748046569589,5.7388,174.22,174.21,0.0405792]
[1748046569791,0.04096189,174.23,174.21,0.0405792]
[1748046572489,0.04096189,174.23,174.21,5.7794792]
[1748046572686,0.04096189,174.23,174.21,0.0405792]
[1748046573093,0.04096189,174.23,174.22,5.7388]
[1748046577400,0.04096189,174.23,174.21,0.0405792]
[1748046577401,0.04096189,174.23,174.21,5.7796792]
[1748046577601,0.04096189,174.23,174.21,0.0405792]
[1748046577901,0.04096189,174.23,174.21,5.7794792]
[1748046578097,0.04096189,174.23,174.21,0.0405792]
[1748046578502,0.04096189,174.23,174.22,5.7388]
[1748046582620,0.04096189,174.23,174.21,5.7795792]
[1748046582913,5.77976189,174.23,174.21,0.0405792]
[1748046583216,0.04096189,174.23,174.21,0.0405792]
[1748046583914,5.7388,174.22,174.21,0.0405792]
[1748046589012,11.4788,174.22,174.07,5.2929549]
[1748046589318,8.58224038,174.21,174.08,1.984]
[1748046590114,0.0381198,174.16,174.13,0.03730983]
[1748046590418,0.0381198,174.16,174.14,5.7412]
[1748046591021,0.0381198,174.16,174.13,5.77900983]
[1748046591221,0.0381198,174.16,174.13,0.03730983]
[1748046593423,0.0381198,174.16,174.14,5.7412]
[1748046595223,0.0381198,174.16,174.15,5.7411]
[1748046595415,0.0381198,174.16,174.13,0.03730983]
[1748046597120,0.0381198,174.16,174.03,5.2929549]
[1748046597328,129.0,174.18,174.03,5.2929549]
[1748046597329,6.68169633,174.12,174.03,5.2929549]
[1748046597529,129.02,174.11,174.03,5.2929549]
[1748046597919,5.7437,174.08,174.04,5.7447]
[1748046598223,0.04066585,174.08,174.04,0.04176644]
[1748046598932,0.04066585,174.08,174.05,5.7442]
[1748046599527,0.04066585,174.08,174.06,5.7439]
[1748046600224,0.04066585,174.08,174.07,5.7438]
[1748046600524,129.06,174.13,174.04,0.04176644]
[1748046600925,129.06,174.13,174.1,5.7425]
[1748046601121,129.06,174.13,174.05,1.8851]
[1748046601320,129.06,174.13,174.06,1.9448]
[1748046601529,0.03749845,174.11,174.1,5.7425]
[1748046601719,0.03749845,174.11,174.08,0.03668098]
[1748046601919,0.03749845,174.11,174.08,5.77988098]
[1748046602124,0.03749845,174.11,174.08,0.03668098]
[1748046602727,0.03749845,174.11,174.09,5.7429]
[1748046602926,0.03749845,174.11,174.08,0.03668098]
[1748046603123,5.7431,174.09,174.08,0.03668098]
[1748046603729,0.03749845,174.11,174.08,0.03668098]
[1748046603922,129.09749845,174.11,174.08,0.03668098]
[1748046604124,5.7431,174.1,174.08,0.03668098]
[1748046604526,129.09749845,174.11,174.08,0.03668098]
[1748046604728,5.78019845,174.11,174.08,0.03668098]
[1748046604923,0.03749845,174.11,174.08,0.03668098]
[1748046605122,0.03749845,174.11,174.09,5.7431]
[1748046605930,0.03749845,174.11,174.08,0.03668098]
[1748046607829,5.7431,174.09,174.08,0.03668098]
[1748046608128,130.14,174.1,174.08,0.03668098]
[1748046608523,130.14,174.1,174.08,5.77998098]
[1748046608932,130.14,174.1,174.08,0.03668098]
[1748046609420,0.03749845,174.11,174.08,0.03668098]
[1748046609625,130.14,174.15,174.08,0.03668098]
[1748046609827,7.12801127,174.17,174.09,6.68540749]
[1748046610132,7.12801127,174.17,174.09,8.66450749]
[1748046610631,0.04095461,174.15,174.09,8.66450749]
[1748046611030,0.04095461,174.15,174.14,5.7415]
[1748046611932,0.04095461,174.15,174.13,5.78108221]
[1748046612130,0.04095461,174.15,174.13,0.03938221]
[1748046613235,0.04095461,174.15,174.14,5.7415]
[1748046616435,0.04095461,174.15,174.13,5.78108221]
[1748046616633,0.04095461,174.15,174.13,0.03938221]
[1748046616831,0.04095461,174.15,174.14,5.7415]
[1748046621035,5.461e-05,174.15,174.14,5.7415]
[1748046625837,5.461e-05,174.15,174.13,0.03938221]
[1748046626030,5.461e-05,174.15,174.04,64.0]
[1748046626031,130.1,174.14,174.05,5.2929549]
[1748046626231,3.8087,174.13,174.05,5.2929549]
[1748046626436,5.7426,174.11,174.07,5.7435]
[1748046626626,3.8087,174.13,174.05,5.2929549]
[1748046626827,130.1,174.14,174.05,5.2929549]
[1748046627131,0.04100798,174.11,174.08,0.04411183]
[1748046627436,130.1,174.18,174.08,130.1]
[1748046627735,7.12373508,174.21,174.12,9.8904763]
[1748046627929,10.68283502,174.23,174.16,9.8904763]
[1748046628132,10.68283502,174.23,174.22,5.7388]
[1748046631442,0.036768,174.24,174.23,5.7385]
[1748046635145,6.8e-05,174.24,174.23,5.7385]
[1748046635640,133.956,174.34,174.23,139.9504763]
[1748046635831,133.956,174.34,174.31,5.7356]
[1748046636036,133.956,174.34,174.25,109.08]
[1748046636644,0.04149192,174.31,174.28,0.03801313]
[1748046637145,0.04149192,174.31,174.3,5.7362]
[1748046641754,132.8043,174.38,174.28,130.79801313]
[1748046642050,130.76,174.38,174.28,194.79801313]
[1748046642251,130.76,174.42,174.37,5.7336]
[1748046642748,5.77127426,174.41,174.38,0.03806628]
[1748046643050,5.733,174.4,174.38,0.03806628]
[1748046643254,0.03847426,174.41,174.38,0.03806628]
[1748046643752,5.7332,174.39,174.38,0.03806628]
[1748046644448,0.03847426,174.41,174.25,11.7370763]
[1748046644648,118.9104763,174.41,174.26,130.74]
[1748046644846,9.8904763,174.37,174.22,130.74]
[1748046645057,130.74,174.36,174.19,243.6772]
[1748046645546,0.03904313,174.29,174.26,0.03929511]
[1748046646254,5.77584313,174.29,174.26,0.03929511]
[1748046646564,0.03904313,174.29,174.26,0.03929511]
[1748046646947,5.7372,174.27,174.26,0.03929511]
[1748046647352,0.03904313,174.29,174.26,0.03929511]
[1748046648148,0.03904313,174.29,174.27,5.7371]
[1748046649353,0.03904313,174.29,174.26,0.03929511]
[1748046649850,5.7372,174.27,174.26,0.03929511]
[1748046651559,0.03904313,174.29,174.12,64.0]
[1748046651748,130.74,174.3,174.13,132.6766]
[1748046651944,8.89857236,174.27,174.1,114.3129549]
[1748046652152,5.7407,174.17,174.1,114.3129549]
[1748046652652,0.04308648,174.15,174.14,5.7412]
[1748046652853,0.04308648,174.15,174.12,0.03641622]
[1748046653552,5.78428648,174.15,174.12,0.03641622]
[1748046653754,0.04308648,174.15,174.12,0.03641622]
[1748046654248,0.04308648,174.15,174.13,5.7416]
[1748046654439,0.04308648,174.15,174.12,0.03641622]
[1748046654645,0.04308648,174.15,174.14,5.7415]
[1748046654946,0.04308648,174.15,174.12,0.03641622]
[1748046655151,0.04308648,174.15,174.14,5.7415]
[1748046655356,0.04308648,174.15,174.12,0.03641622]
[1748046656355,0.04308648,174.15,174.13,5.7418]
[1748046656956,0.04308648,174.15,174.12,0.03641622]
[1748046659355,0.04308648,174.15,174.14,5.7415]
[1748046660454,130.82,174.23,174.22,5.7388]
[1748046660959,134.722,174.27,174.16,130.82]
[1748046661658,0.0362629,174.23,174.2,0.04171819]
[1748046661959,0.0362629,174.23,174.22,5.7388]
[1748046662456,6.29e-05,174.23,174.22,5.7388]
[1748046668868,6.29e-05,174.23,174.21,5.7391]
[1748046669071,6.29e-05,174.23,174.2,0.04171819]
[1748046669665,5.739,174.22,174.2,0.04171819]
[1748046669969,6.29e-05,174.23,174.2,0.04171819]
[1748046671274,5.7387629,174.23,174.2,0.04171819]
[1748046671473,6.29e-05,174.23,174.2,0.04171819]
[1748046672574,6.29e-05,174.23,174.2,5.78091819]
[1748046672876,6.29e-05,174.23,174.2,0.04171819]
[1748046673368,1.9834629,174.23,174.2,0.04171819]
[1748046673568,6.29e-05,174.23,174.2,0.04171819]
[1748046673767,6.29e-05,174.23,174.22,5.7388]
[1748046675883,6.29e-05,174.23,174.21,5.739]
[1748046676072,6.29e-05,174.23,174.2,0.04171819]
[1748046678482,5.7391,174.21,174.2,0.04171819]
[1748046678675,1.9633629,174.23,174.12,131.1469]
[1748046678881,3.9532,174.23,174.12,131.1469]
[1748046679083,5.7401,174.19,174.12,131.1469]
[1748046679682,0.03826532,174.17,174.14,0.04173288]
[1748046679882,0.03826532,174.17,174.15,5.7409]
[1748046680077,0.03826532,174.17,174.14,0.04173288]
[1748046680579,6.532e-05,174.17,174.16,5.7408]
[1748046682582,129.12,174.28,174.25,5.7378]
[1748046683377,129.12,174.28,174.19,1.8954]
[1748046683685,129.16195149,174.28,174.22,0.03912993]
[1748046684485,129.16195149,174.28,174.27,5.7372]
[1748046685078,129.16195149,174.28,174.26,5.77501943]
[1748046687287,129.16195149,174.28,174.27,5.7372]
[1748046687584,0.04195149,174.28,174.27,5.7372]
[1748046690283,5.149e-05,174.28,174.27,5.7372]
[1748046690485,5.149e-05,174.28,174.27,7.6475]
[1748046691083,129.08,174.36,174.27,1.9103]
[1748046691286,10.68283502,174.4,174.28,129.08]
[1748046691588,139.76283502,174.4,174.28,129.08]
[1748046691884,0.03648957,174.36,174.32,0.03631]
[1748046692388,0.03648957,174.36,174.33,129.06]
[1748046692593,8.957e-05,174.36,174.35,5.7345]
[1748046693879,10.68283502,174.4,174.39,5.7332]
[1748046694080,1.88123502,174.4,174.39,5.7332]
[1748046694393,14.01858819,174.44,174.43,5.7319]
[1748046694785,14.01858819,174.44,174.42,0.04413897]
[1748046695494,5.76747137,174.45,174.42,0.04413897]
[1748046695688,0.03617137,174.45,174.42,0.04413897]
[1748046696197,129.04,174.44,174.31,129.04]
[1748046696388,3.9861,174.43,174.31,129.04]
[1748046696692,5.7329,174.4,174.31,129.04]
[1748046697096,0.03768884,174.37,174.34,0.04238092]
[1748046697394,0.03768884,174.37,174.36,5.7342]
[1748046697692,0.03768884,174.37,174.34,0.04238092]
[1748046697881,5.7351,174.34,174.28,5.2929549]
[1748046698091,129.02,174.38,174.28,5.2929549]
[1748046698589,5.7346,174.35,174.27,129.02]
[1748046698786,129.02,174.38,174.27,129.02]
[1748046699095,5.7355,174.32,174.31,0.04289045]
[1748046699295,0.04043386,174.34,174.31,0.04289045]
[1748046699795,0.04043386,174.34,174.33,5.7352]
[1748046704816,0.04043386,174.34,174.31,0.04289045]
[1748046705199,0.04043386,174.34,174.22,1.9499]
[1748046705499,8.89857236,174.34,174.21,134.2529549]
[1748046706298,0.04401784,174.29,174.26,0.0404949]
[1748046706500,129.00401784,174.29,174.26,0.0404949]
[1748046707197,129.00401784,174.29,174.26,5.7778949]
[1748046707496,129.00401784,174.29,174.26,0.0404949]
[1748046707701,5.7381,174.25,174.21,5.2929549]
[1748046708001,1.9329,174.28,174.21,5.2929549]
[1748046708700,0.03713704,174.26,174.23,0.04402956]
[1748046709001,0.03713704,174.26,174.25,5.7376]
[1748046709395,3.704e-05,174.26,174.25,5.7376]
[1748046715608,3.704e-05,174.26,174.24,5.7381]
[1748046715800,3.704e-05,174.26,174.23,0.04402956]
[1748046717409,3.704e-05,174.26,174.25,5.7378]
[1748046720514,3.704e-05,174.26,174.23,0.04402956]
[1748046720807,5.738,174.25,174.23,0.04402956]
[1748046721009,129.00003704,174.26,174.23,0.04402956]
[1748046721608,3.704e-05,174.26,174.25,5.7378]
[1748046722010,3.704e-05,174.26,174.23,0.04402956]
[1748046722711,3.704e-05,174.26,174.25,5.7378]
[1748046729423,495.64,174.39,174.25,75.4778]
[1748046729718,128.92,174.38,174.25,69.7378]
[1748046729926,16.37136806,174.4,174.27,8.89857236]
[1748046730118,16.37136806,174.4,174.37,5.7339]
[1748046730324,10.63826806,174.4,174.37,5.7339]
[1748046730618,10.67771646,174.4,174.37,5.77063862]
[1748046731221,10.67771646,174.4,174.37,0.03673862]
[1748046731717,0.0394484,174.4,174.37,0.03673862]
[1748046732524,5.7724484,174.4,174.37,5.77063862]
[1748046732724,0.0394484,174.4,174.37,0.03673862]
[1748046733119,0.0394484,174.4,174.33,78.93673862]
[1748046733617,0.0394484,174.4,174.39,5.7332]
[1748046733920,4.84e-05,174.4,174.39,5.7332]
[1748046737120,1.8843,174.49,174.39,1.9122]
[1748046738127,0.04378137,174.46,174.42,0.04182007]
[1748046738523,0.04378137,174.46,174.45,5.7312]
[1748046743623,0.04378137,174.46,174.42,0.04182007]
[1748046744026,0.04378137,174.46,174.45,5.7312]
[1748046744625,0.04378137,174.46,174.42,0.04182007]
[1748046745721,0.04378137,174.46,174.45,5.7313]
[1748046747032,8.137e-05,174.46,174.45,5.7313]
[1748046747223,128.86,174.5,174.49,5.7299]
[1748046747422,5.7287,174.53,174.49,5.7299]
[1748046747832,5.7287,174.53,174.5,5.7296]
[1748046748129,5.729,174.52,174.5,0.03856687]
[1748046749033,5.7293,174.51,174.5,0.03856687]
[1748046749233,0.04235942,174.53,174.5,0.03856687]
[1748046749433,5.7291,174.52,174.5,0.03856687]
[1748046749625,0.04235942,174.53,174.5,0.03856687]
[1748046749933,5.729,174.52,174.5,0.03856687]
[1748046750236,0.04235942,174.53,174.5,0.03856687]
[1748046750536,5.7293,174.52,174.5,0.03856687]
[1748046750728,0.04235942,174.53,174.5,0.03856687]
[1748046751133,5.77105942,174.53,174.5,0.03856687]
[1748046751734,0.04235942,174.53,174.5,0.03856687]
[1748046752240,0.04235942,174.53,174.51,5.729]
[1748046752532,0.04235942,174.53,174.5,0.03856687]
[1748046753435,0.04235942,174.53,174.51,5.729]
[1748046753938,0.04235942,174.53,174.52,5.729]
[1748046755135,0.04235942,174.53,174.51,5.7292]
[1748046756029,5.7293,174.51,174.5,0.03856687]
[1748046756935,128.82235942,174.53,174.5,0.03856687]
[1748046756936,0.04235942,174.53,174.5,0.03856687]
[1748046757339,0.04235942,174.53,174.52,5.729]
[1748046760942,0.04235942,174.53,174.51,5.7293]
[1748046761239,0.04235942,174.53,174.5,0.03856687]
[1748046761639,0.04235942,174.53,174.52,5.729]
[1748046762638,0.04235942,174.53,174.5,0.03856687]
[1748046763040,0.04235942,174.53,174.52,5.729]
[1748046765647,5.942e-05,174.53,174.52,5.729]
[1748046767642,5.942e-05,174.53,174.5,0.03856687]
[1748046768248,5.942e-05,174.53,174.5,5.76816687]
[1748046768543,5.942e-05,174.53,174.5,0.03856687]
[1748046769846,5.942e-05,174.53,174.52,5.729]
[1748046777651,5.942e-05,174.53,174.51,5.7292]
[1748046777849,5.942e-05,174.53,174.5,0.03856687]
[1748046778459,5.942e-05,174.53,174.52,5.729]
[1748046779258,5.942e-05,174.53,174.5,0.03856687]
[1748046780261,5.942e-05,174.53,174.52,5.729]
[1748046782055,5.942e-05,174.53,174.51,5.7293]
[1748046782261,5.942e-05,174.53,174.5,0.03856687]
[1748046782660,5.942e-05,174.53,174.51,5.729]
[1748046782863,5.942e-05,174.53,174.5,0.03856687]
[1748046783159,5.942e-05,174.53,174.51,5.729]
[1748046783355,5.942e-05,174.53,174.5,0.03856687]
[1748046783555,5.942e-05,174.53,174.51,5.729]
[1748046784262,5.942e-05,174.53,174.5,0.03856687]
[1748046784660,5.942e-05,174.53,174.51,128.64]
[1748046784855,5.942e-05,174.53,174.52,5.729]
[1748046786165,128.64,174.61,174.6,5.7263]
[1748046786364,12.55876806,174.62,174.51,237.52]
[1748046787066,12.55876806,174.62,174.61,5.726]
[1748046787466,10.63826806,174.62,174.61,5.726]
[1748046788363,10.63826806,174.62,174.6,0.04278229]
[1748046788967,10.63826806,174.62,174.55,5.728]
[1748046789470,5.7269,174.59,174.56,5.7275]
[1748046789767,139.25826806,174.62,174.52,4.86275319]
[1748046789965,0.03888619,174.59,174.58,5.727]
[1748046790371,8.619e-05,174.59,174.58,5.727]
[1748046796776,8.619e-05,174.59,174.57,5.7272]
[1748046796977,8.619e-05,174.59,174.56,128.5]
[1748046797271,8.619e-05,174.59,174.58,5.727]
[1748046804771,8.619e-05,174.59,174.55,0.04368288]
[1748046805389,8.619e-05,174.59,174.57,5.727]
[1748046805869,8.619e-05,174.59,174.58,5.727]
[1748046806180,8.619e-05,174.59,174.55,0.04368288]
[1748046808885,8.619e-05,174.59,174.58,5.727]
[1748046809784,8.619e-05,174.59,174.57,5.7272]
[1748046810285,8.619e-05,174.59,174.55,0.04368288]
[1748046810486,8.619e-05,174.59,174.58,5.727]
[1748046813182,128.46,174.67,174.57,5.97981939]
[1748046813383,128.46,174.67,174.58,2.0165]
[1748046813685,128.46,174.67,174.66,5.7244]
[1748046814186,128.46,174.67,174.65,0.03852769]
[1748046814386,128.46,174.67,174.64,0.03932198]
[1748046814686,128.4972166,174.67,174.64,0.03932198]
[1748046815091,128.4972166,174.67,174.66,5.7244]
[1748046815789,128.4972166,174.67,174.65,5.7246]
[1748046815991,128.4972166,174.67,174.64,0.03932198]
[1748046816691,128.4972166,174.67,174.65,5.7246]
[1748046817187,128.4972166,174.67,174.64,0.03932198]
[1748046817886,128.4972166,174.67,174.65,5.7246]
[1748046818088,128.4972166,174.67,174.64,0.03932198]
[1748046819382,134.2213166,174.67,174.64,5.76432198]
[1748046820888,128.4972166,174.67,174.64,0.03932198]
[1748046822293,5.7244,174.66,174.64,0.03932198]
[1748046822994,134.2212166,174.67,174.64,0.03932198]
[1748046823593,134.2212166,174.67,174.64,5.76402198]
[1748046823891,134.2212166,174.67,174.64,0.03932198]
[1748046824090,128.4972166,174.67,174.64,0.03932198]
[1748046824391,128.4972166,174.67,174.66,5.7244]
[1748046824994,0.0372166,174.67,174.66,5.7244]
[1748046836201,0.0372166,174.67,174.64,5.76432198]
[1748046836699,5.7615166,174.67,174.64,5.76432198]
[1748046837202,0.0372166,174.67,174.64,0.03932198]
[1748046837403,128.24,174.66,174.64,0.03932198]
[1748046837904,5.7247,174.65,174.64,0.03932198]
[1748046838303,128.24,174.66,174.57,128.24]
[1748046838500,5.7251,174.64,174.61,5.7257]
[1748046839100,136.26081939,174.66,174.56,5.2929549]
[1748046839307,1.91901902,174.63,174.59,0.04295719]
[1748046839504,5.7266,174.6,174.59,0.04295719]
[1748046839801,133.9666,174.6,174.59,0.04295719]
[1748046840497,128.24,174.6,174.59,0.04295719]
[1748046841201,133.9663,174.6,174.59,0.04295719]
[1748046842702,128.24,174.6,174.59,0.04295719]
[1748046843210,128.24,174.6,174.59,5.76965719]
[1748046843401,0.03761902,174.63,174.59,0.04295719]
[1748046843708,0.03761902,174.63,174.6,5.7261]
[1748046843907,0.03761902,174.63,174.59,0.04295719]
[1748046844404,0.03761902,174.63,174.61,5.7258]
[1748046844601,0.03761902,174.63,174.59,0.04295719]
[1748046845904,5.7263,174.6,174.59,0.04295719]
[1748046846104,0.03761902,174.63,174.59,0.04295719]
[1748046846305,5.7263,174.6,174.59,0.04295719]
[1748046847009,5.7261,174.61,174.59,0.04295719]
[1748046848110,0.03761902,174.63,174.59,0.04295719]
[1748046848111,5.7258,174.62,174.59,0.04295719]
[1748046849110,5.7258,174.62,174.59,5.76935719]
[1748046849911,5.7261,174.61,174.59,0.04295719]
[1748046850111,0.03761902,174.63,174.59,0.04295719]
[1748046850504,0.03761902,174.63,174.61,5.7258]
[1748046851314,0.03761902,174.63,174.62,5.7257]
[1748046852703,128.02,174.77,174.67,5.724]
[1748046853303,10.63826806,174.73,174.67,5.724]
[1748046853508,10.63826806,174.73,174.64,1.8658]
[1748046853808,0.04358125,174.7,174.67,0.03737405]
[1748046854408,0.04358125,174.7,174.69,5.7234]
[1748046855708,0.04358125,174.7,174.68,5.7236]
[1748046855917,0.04358125,174.7,174.67,0.03737405]
[1748046856217,0.04358125,174.7,174.69,5.7234]
[1748046864519,0.04358125,174.7,174.68,5.7236]
[1748046864826,0.04358125,174.7,174.67,0.03737405]
[1748046865126,0.04358125,174.7,174.69,5.7234]
[1748046866124,0.04358125,174.7,174.67,0.03737405]
[1748046866626,5.7234,174.69,174.67,0.03737405]
[1748046867128,5.76668125,174.7,174.67,0.03737405]
[1748046867727,0.04358125,174.7,174.67,0.03737405]
[1748046868233,0.04358125,174.7,174.69,5.7234]
[1748046872531,0.04358125,174.7,174.67,0.03737405]
[1748046873231,0.04358125,174.7,174.67,5.76107405]
[1748046873937,0.04358125,174.7,174.68,5.7237]
[1748046874125,0.04358125,174.7,174.67,0.03737405]
[1748046874620,0.04358125,174.7,174.68,5.7235]
[1748046875429,0.04358125,174.7,174.67,5.76127405]
[1748046875633,0.04358125,174.7,174.67,0.03737405]
[1748046876731,0.04358125,174.7,174.68,5.7235]
[1748046878432,0.04358125,174.7,174.69,5.7234]
[1748046883133,8.125e-05,174.7,174.69,5.7234]
[1748046883437,127.64,174.76,174.75,5.7214]
[1748046884136,138.25826806,174.8,174.69,133.61981939]
[1748046884339,0.03840918,174.76,174.73,0.03889202]
[1748046884836,0.03840918,174.76,174.75,5.7214]
[1748046886442,0.03840918,174.76,174.73,0.03889202]
[1748046886946,0.03840918,174.76,174.75,5.7214]
[1748046888647,0.03840918,174.76,174.74,5.7217]
[1748046888843,0.03840918,174.76,174.73,0.03889202]
[1748046890539,0.03840918,174.76,174.75,5.7214]
[1748046890744,0.03840918,174.76,174.73,0.03889202]
[1748046891143,0.03840918,174.76,174.75,5.7214]
[1748046893848,0.03840918,174.76,174.73,5.76089202]
[1748046894049,0.03840918,174.76,174.73,0.03889202]
[1748046894250,0.03840918,174.76,174.74,5.7217]
[1748046895250,0.03840918,174.76,174.73,5.76089202]
[1748046896259,0.03840918,174.76,174.74,5.7216]
[1748046897766,0.03840918,174.76,174.75,5.7214]
[1748046899753,0.03840918,174.76,174.74,5.7217]
[1748046900667,0.03840918,174.76,174.73,0.03889202]
[1748046901766,5.75950918,174.76,174.73,5.76069202]
[1748046902170,0.03840918,174.76,174.73,0.03889202]
[1748046902368,5.7217,174.74,174.73,0.03889202]
[1748046904069,127.58,174.75,174.73,0.03889202]
[1748046904868,133.3016,174.75,174.73,0.03889202]
[1748046905373,127.58,174.75,174.73,0.03889202]
[1748046905860,5.7217,174.74,174.73,0.03889202]
[1748046916578,5.7217,174.74,174.65,133.3044]
[1748046916579,11.70151939,174.74,174.65,133.3044]
[1748046916778,5.97981939,174.71,174.6,1.8624]
[1748046916969,127.2,174.7,174.6,1.8624]
[1748046917272,5.7245,174.66,174.62,5.7256]
[1748046917778,5.76860463,174.66,174.62,0.04324972]
[1748046917967,0.04410463,174.66,174.63,5.7253]
[1748046918171,0.04410463,174.66,174.62,0.04324972]
[1748046918478,5.76850463,174.66,174.62,5.76884972]
[1748046918677,0.04410463,174.66,174.62,0.04324972]
[1748046919775,5.76850463,174.66,174.62,0.04324972]
[1748046920481,5.76850463,174.66,174.62,5.76884972]
[1748046920678,5.7247,174.65,174.62,5.76884972]
[1748046921579,5.7253,174.63,174.62,0.04324972]
[1748046922080,127.22,174.65,174.62,0.04324972]
[1748046922286,5.7252,174.64,174.62,0.04324972]
[1748046922486,127.22,174.65,174.62,0.04324972]
[1748046922884,5.7252,174.64,174.62,0.04324972]
[1748046923188,127.22,174.65,174.62,0.04324972]
[1748046923580,5.7252,174.64,174.62,0.04324972]
[1748046923882,127.22,174.65,174.62,0.04324972]
[1748046924188,5.7253,174.63,174.62,0.04324972]
[1748046924688,5.7252,174.64,174.62,0.04324972]
[1748046925487,127.22,174.65,174.62,0.04324972]
[1748046925488,5.7253,174.63,174.62,0.04324972]
[1748046927393,5.7251,174.64,174.62,0.04324972]
[1748046929997,5.7253,174.63,174.62,0.04324972]
[1748046935795,5.7251,174.64,174.62,0.04324972]
[1748046935999,127.22,174.65,174.62,0.04324972]
[1748046936401,5.7253,174.63,174.62,0.04324972]
[1748046939200,133.19981939,174.65,174.52,1.8489]
[1748046939401,5.97981939,174.61,174.52,1.8489]
[1748046939594,5.7272,174.58,174.54,5.7282]